Cogmind - Beta 10.2 @@@ ROGUE MODE // 2021.10.31 @ 22:40:33 Player: PlatypusCo Result: Destroyed by G-47 Trooper with Particle Gun Performance ------------- Evolutions (0) 0 Regions Visited (2) 400 Robots Destroyed (14) 70 Value Destroyed (308) 308 Prototype IDs (0) 0 Alien Tech Used (0) 0 Bonus (0) 0 TOTAL SCORE: 778 Bonus ------- None Cogmind --------- Core Integrity 0/250 Matter 299/300 Energy 214/225 System Corruption 0% Temperature Cool (87) Movement Rolling (90) Location -10/Mines Parts ------- > --- POWER (1) -------- Light Ion Engine > --- PROPULSION (2) --- Wheel Compact Wheel > --- UTILITY (2) ------ Small Storage Unit Small Battery > --- WEAPON (2) ------- Particle Gun Light Assault Rifle > --- INVENTORY (6) ---- Light Ion Engine Light Nuclear Core Compact Wheel Heat Sink Small Laser Grenade Launcher Peak State ------------ > --- POWER ------------ Light Nuclear Core > --- PROPULSION ------- Wheel Compact Wheel > --- UTILITY ---------- Small Storage Unit Compact Matter Pod > --- WEAPON ----------- Small Laser Assault Rifle > --- INVENTORY -------- Ion Engine [Rating: 11] Favorites ----------- Power Light Ion Engine Engine Light Ion Engine Power Core Light Nuclear Core Propulsion Wheel Leg Aluminum Leg Wheel Wheel Utility Small Storage Unit Device Heat Sink Storage Small Storage Unit Weapon Small Laser Energy Gun Small Laser Ballistic Gun Assault Rifle Launcher Grenade Launcher Build | -11 -10 -10 ------- Run | Scr Mat Min Slots Evolved . | . . . Power . | . . . Propulsion . | . . . Utility . | . . . Weapon . | . . . Parts Attached 33 | 6 6 21 Power 6 | 1 1 4 Engine 5 | 1 1 3 Core 1 | . . 1 Reactor . | . . . Propulsion 11 | 2 3 6 Treads . | . . . Leg 4 | 2 . 2 Wheel 7 | . 3 4 Hover . | . . . Flight . | . . . Utility 4 | 1 . 3 Device 1 | . . 1 Storage 3 | 1 . 2 Processor . | . . . Hackware . | . . . Protection . | . . . Artifact . | . . . Weapon 12 | 2 2 8 Energy Gun 7 | 1 1 5 Energy Cannon . | . . . Ballistic Gun 4 | 1 1 2 Ballistic Cannon . | . . . Launcher 1 | . . 1 Special Weapon . | . . . Impact Weapon . | . . . Slashing Weapon . | . . . Piercing Weapon . | . . . Special Melee Weapon . | . . . Unidentified Prototypes . | . . . Parts Lost 16 | . 1 15 Power 3 | . . 3 Propulsion 4 | . . 4 Utility 2 | . . 2 Weapon 7 | . 1 6 Highest Loss Streak 15 | . 1 15 Average Slot Usage (%) 89 | . 79 93 Engine 13 | . 12 13 Leg 3 | . 4 2 Wheel 24 | . 22 24 Storage 21 | . 14 25 Energy Gun 13 | . 15 12 Ballistic Gun 11 | . 8 12 Naked Turns . | . . . Heaviest Build 12 | 10 10 12 Greatest Support 26 | 20 20 26 Greatest Overweight (x) 2 | . . 2 Average Overweight (x) . | . . . Largest Inventory Capacity 6 | 6 6 6 Average Capacity 5 | 5 6 6 Most Carried 6 | 6 6 6 Average Carried 4 | 3 4 4 Final Capacity 6 | 6 6 6 Final Carried 6 | 4 6 6 Class Distribution -------------------- 77% | Mutant 22% | Scavenger-Mutant Dominant Class ---------------- Mutant | -10/Materials Mutant | -10/Mines Resources | -11 -10 -10 ----------- Run | Scr Mat Min Matter Collected 514 | 187 160 167 Remotely . | . . . Salvage Created 428 | . 260 168 Parts 32 | . 19 13 Haulers Intercepted . | . . . Recyclers Shooed . | . . . Parts Field Recycled . | . . . Retrieved Matter . | . . . Parts Self-Destructed . | . . . Prevented . | . . . Kills | -11 -10 -10 ------- Run | Scr Mat Min Combat Hostiles Destroyed 12 | . 8 4 Guns 12 | . 8 4 Classes Destroyed 4 | . 3 1 Worker 1 | . 1 . Recycler 1 | . . 1 Swarmer 5 | . 3 2 Grunt 7 | . 5 2 Best Kill Streak 4 | . 4 2 Combat Bots Only 3 | . 3 2 Max Kills in Single Turn 1 | . 1 1 Gunslinging . | . . . Exploded . | . . . Melee . | . . . Uniques/NPCs Destroyed . | . . . Combat | -11 -10 -10 -------- Run | Scr Mat Min Damage Taken 1369 | . 316 1053 Core 250 | . 48 202 Absorbed by Shields . | . . . Core Remaining (%) 100 | 100 . . Volleys Fired 43 | . 24 19 Largest 2 | . 2 2 Hottest 85 | . 70 85 Shots Fired 80 | . 46 34 Gun 80 | . 46 34 Cannon . | . . . Launcher . | . . . Special . | . . . Kinetic 34 | . 15 19 Thermal 46 | . 31 15 Explosive . | . . . Electromagnetic . | . . . Robot Hit Streak 12 | . 12 6 Robot Miss Streak 4 | . 3 4 Penetration Max . | . . . Secondary Targets 3 | . 1 2 Max Gunslinging Chain 1 | . 1 1 Shots Hit Robots 49 | . 32 17 Core Hits 25 | . 16 9 Critical Hits . | . . . Critical Kills . | . . . Critical Parts Destroyed . | . . . Melee Attacks . | . . . Impact . | . . . Slashing . | . . . Piercing . | . . . Sneak Attacks . | . . . Combat Hostiles . | . . . Follow-up Attacks . | . . . Damage Inflicted 628 | . 356 272 Guns 613 | . 356 257 Cannons . | . . . Explosions . | . . . Melee . | . . . Ramming 15 | . . 15 Kinetic 221 | . 98 123 Thermal 392 | . 258 134 Explosive . | . . . Electromagnetic . | . . . Impact . | . . . Slashing . | . . . Piercing . | . . . Highest Corruption . | . . . Average Corruption . | . . . Corruption Purged . | . . . Overload Shots . | . . . Overflow Damage . | . . . Projectiles . | . . . Explosions . | . . . Melee . | . . . Knockbacks . | . . . Impact . | . . . Kinetic . | . . . Secondary . | . . . Self-Inflicted Damage 6 | . . 6 Shots . | . . . Rammed 5 | . . 5 Targets Rammed 5 | . . 5 Kicked . | . . . Crushed . | . . . Highest Temperature 98 | . 57 98 Average Temperature 28 | . 28 27 Received Heat Transfer 684 | . 147 537 Siege Activations . | . . . Robots Corrupted . | . . . Combat Hostiles . | . . . Parts Fried . | . . . Impact Corruptions . | . . . Robots Melted . | . . . Combat Hostiles . | . . . Parts Melted 1 | . . 1 Heat Transferred 971 | . 660 311 Parts Sabotaged . | . . . Parts Stolen . | . . . Parts Stripped . | . . . Power Chain Reactions . | . . . Missiles Intercepted . | . . . Alert | -11 -10 -10 ------- Run | Scr Mat Min Peak Influence 248 | . 248 151 Initial 96 | . . 96 Average 105 | . 152 93 Maximum Alert Level 1 | . 1 . Low Security (%) 98 | 100 94 100 Level 1 1 | . 5 . Level 2 . | . . . Level 3 . | . . . Level 4 . | . . . Level 5 . | . . . High Security . | . . . Max Security . | . . . Squads Dispatched 1 | . 1 . Investigation . | . . . Extermination . | . . . Reinforcement 1 | . 1 . Assault . | . . . Garrison . | . . . Intercept . | . . . Construction Impeded . | . . . Haulers Reinforced . | . . . Stealth | -11 -10 -10 --------- Run | Scr Mat Min Distress Signals 3 | . 2 1 Communications Jammed . | . . . Distress Signals . | . . . Times Spotted 26 | . 15 11 Peak Tracking Total 6 | . 6 5 Tactical Retreats 3 | . 1 2 Traps | -11 -10 -10 ------- Run | Scr Mat Min Traps Triggered . | . . . Indirectly . | . . . Trap Hack Attempts . | . . . Triggered . | . . . Disarmed . | . . . Reprogrammed . | . . . Reused . | . . . Traps Extracted . | . . . Installed . | . . . Triggered . | . . . Machines | -11 -10 -10 ---------- Run | Scr Mat Min Machines Disabled . | . . . Max in Single Turn . | . . . Machines Sabotaged . | . . . Garrisons Compromised . | . . . Overloaded Fab Kills . | . . . Fab Network Shutdowns . | . . . Hacking | -11 -10 -10 --------- Run | Scr Mat Min Machines Accessed 3 | . 2 1 Terminals 2 | . 1 1 Fabricators . | . . . Repair Stations 1 | . 1 . Recycling Units . | . . . Scanalyzers . | . . . Garrison Access . | . . . Total Hacks 16 | . 13 3 Successful 14 | . 11 3 Failed 2 | . 2 . Catastrophic . | . . . Database Lockouts . | . . . Manual . | . . . Terminals 7 | . 4 3 Fabricators . | . . . Repair Stations 9 | . 9 . Recycling Units . | . . . Scanalyzers . | . . . Garrison Access . | . . . Terminal Hacks 5 | . 2 3 Record 3 | . . 3 Level Access Points 1 | . 1 . Patrol Status 1 | . 1 . Fabricator Hacks . | . . . Repair Station Hacks 9 | . 9 . Scan Component 4 | . 4 . Repair 4 | . 4 . Refit 1 | . 1 . Recycling Unit Hacks . | . . . Scanalyzer . | . . . Garrison Access Hacks . | . . . Unauthorized Hacks . | . . . Terminals . | . . . Fabricators . | . . . Repair Stations . | . . . Recycling Units . | . . . Scanalyzers . | . . . Garrison Access . | . . . Data Cores Recovered . | . . . Used . | . . . Hacking Detections 2 | . 2 . Full Trace Events 1 | . 1 . Feedback Events . | . . . Feedback Blocked . | . . . Robot Schematics Acquired . | . . . Robots Built . | . . . Matter . | . . . Time . | . . . Total Robot Build Rating . | . . . Part Schematics Acquired . | . . . Parts Built . | . . . Matter . | . . . Time . | . . . Total Part Build Rating . | . . . Parts Repaired 4 | . 4 . Time 104 | . 104 . Parts Recycled . | . . . Recycled Matter . | . . . Retrieved Matter . | . . . Retrieved Components . | . . . Parts Scanalyzed . | . . . Part Schematics Acquired . | . . . Parts Damaged . | . . . Bothacking | -11 -10 -10 ------------ Run | Scr Mat Min Used RIF Installer . | . . . Robots Hacked . | . . . Non-combat . | . . . Combat . | . . . Robot Hacks Applied . | . . . Relay Couplers Released . | . . . Robots Rewired . | . . . Allies Hacked . | . . . Hacks Repelled . | . . . Allies | -11 -10 -10 -------- Run | Scr Mat Min Total Allies . | . . . Largest Group . | . . . Highest-Rated Group . | . . . Highest-Rated Ally . | . . . Total Orders . | . . . Ally Attacks . | . . . Total Damage . | . . . Kills . | . . . Allies Corrupted . | . . . Allies Melted . | . . . Intel | -11 -10 -10 ------- Run | Scr Mat Min Robot Analysis Total . | . . . Derelict Logs Recovered . | . . . Drone Launches . | . . . Drone Recoveries . | . . . Exploration | -11 -10 -10 ------------- Run | Scr Mat Min Turns Passed 1038 | 59 308 671 Spaces Moved 458 | 45 130 283 Core 15 | 12 . 3 Treads . | . . . Legs 62 | 33 29 . Wheels 381 | . 101 280 Hover . | . . . Flight . | . . . Fastest Speed 50 | 50 80 80 Average Speed 86 | 101 88 83 Slowest Speed 150 | 120 120 150 Overloaded Moves . | . . . Propulsion Burnouts . | . . . Robots Hopped . | . . . Cave-ins Triggered . | . . . Exploration Rate (%) 34 | 3 30 70 Regions Visited 2 Branch Regions 1 Pre-discovered Areas . | . . . Known Exits Taken . | . . . Unknown Exits Taken 2 | 1 1 . Scrap Searched 3 | . . 3 Spaces Dug . | . . . Terrain Destroyed . | . . . Melee . | . . . Projectile . | . . . AOE . | . . . Terrain Rammed . | . . . Walls Destroyed . | . . . Machines Disabled . | . . . Actions | -11 -10 -10 --------- Run | Scr Mat Min Total 1021 | 56 277 688 Wait 447 | . 108 339 Move 456 | 44 129 283 Hop . | . . . Pick Up 31 | 6 8 17 Fast Attach 5 | 4 . 1 Attach 25 | 2 6 17 Detach . | . . . Swap 3 | . . 3 Drop 6 | . 2 4 Fire 43 | . 24 19 Melee . | . . . Ram 5 | . . 5 Kick . | . . . Crush . | . . . Escape Stasis . | . . . Rewire . | . . . Trap . | . . . Miscellaneous . | . . . Route ------- -11/Scrapyard -10/Materials (discovered 4 exits: Mat x3 / *Min) -10/Mines History --------- Turn | Location | Event 10 | -11/Scrapyard | Discovered new exit (range 15) 60 | -11/Scrapyard | Entered Materials 70 | -10/Materials | Identified exit to Materials 174 | -10/Materials | Discovered new exit (range 16) 219 | -10/Materials | Repaired Lgt. Ion Engine 247 | -10/Materials | Repaired Wheel 275 | -10/Materials | Repaired Assault Rifle 302 | -10/Materials | Repaired Sml. Laser 324 | -10/Materials | Build established: Mutant 368 | -10/Materials | Entered Mines 375 | -10/Mines | Met a Derelict bent on vengeance 388 | -10/Mines | A weapon hastily lodged in a ceiling crevice suddenly fell to the ground 463 | -10/Mines | Excavation squad dispatched 463 | -10/Mines | A large section of the Mines collapsed 713 | -10/Mines | Excavation squad dispatched 810 | -10/Mines | Core integrity fell below 50% 849 | -10/Mines | Core integrity fell below 20% 882 | -10/Mines | Lost 15 parts (3p4n2u6w) 963 | -10/Mines | Excavation squad dispatched 1039 | -10/Mines | Destroyed by G-47 Trooper with Particle Gun Last Messages --------------- 00973_ Slammed into K-01 Serf. 01006_ G-34 Mercenary destroyed. 01011_ Acquired 18 matter. 01012_ Searching scrap... 01012_ Found Sensor Array. 01012_ Found 22 Matter. 01012_ Found Hcp. Battery. 01012_ Found 28 Matter. 01013_ Dropped Sml. Laser. 01015_ Acquired 10 matter. 01016_ Acquired Heat Sink. 01021_ Slammed into K-01 Serf. 01021_ Destabilizing: System interference. 01021_ Lgt. Assault Rifle temporarily disabled. 01021_ Grenade Launcher temporarily disabled. 01022_ K-01 Serf sends out distress signal. 01030_ 07-9QK(g): "TASTE MY VENGEANCE!" 01031_ 07-9QK(g) destroyed. 01033_ Acquired 10 matter. 01034_ Acquired 1 matter. Map ----- +----------------------------------------------------+ | | | ????????????????????????????????????????????????? | | ????????????????????????????????????????????????? | | ????????????????????????????????????????????????? | | ????????????????????????????????????????????????? | | ????????????????????????????????????????????????? | | ????????????????????????????????????????????????? | | ????????????????????????????????????????????????? | | ????????????????????????????????????????????????? | | ????????????????????????????????????????????????? | | ??????????????????????????????????????????????### | | ????????????????????????????#####??????????####T# | | ???????????????????????????## ##?????????# % | | ??????????????????????????## ##????????# """ | | ?????????????????????????## #????????# """ | | ????????????????????????## #????????# """ | | ???????????????????????## #????????# % | | ???????????????????????# ##????????#### # | | ???????????????????????# #????????????# # | | ???????????????????????## ### #????????????# # | | ????????????????????????####### #????????????#%# | | ???????????????????????????## #????????????# # | | ???????????????# #####?????# #?############ # | | ???????????????# *%[#?????# #?# !==% ! # | | ???????????????# ###!######## ### ############ | | ???????????????????#[g=%@!%[ ## #??????????? | | ???????????????????#!g%=%!![ # ###????????? | | ???????????????????############ #????????? | | ??????????????????????????????## ### #????????? | | ???????????????????????????????####?? ??????? | | ????????????????????????????????????? ####?????? | | ????????????????????????????????????? #????????? | | ????????????????????????????????????? ????????? | | ????????????????????????????????????? ???????? | | ?????????????? ????????????????????? ???????? | | ???????????? ????????????????????? ??????? | | ??????????? ?????????????????????? ## #?????? | | ??????????? ??????????????????????##? #?????? | | ???????????? ##????????????????????????####### | | ????????????# ###????????????????????? | | ????????????# ##???????????????????? | | ????????????# #??????????????????????###### | | ???????????## #????????????????????????#### | | ??????????## #???????????????????????## | | ??????????# ????###????????????????## | | ??????????# #???## ##??????????????## | | ???????????# ##?## #?????????????## | | ????????????# ### #??????????##### | | ?????????????# ############ | | ?????????????# ### | +----------------------------------------------------+ Best States ------------- Heat Dissipation 35 Energy Generation 14 Energy Capacity 250 Matter Stores 440 Matter Capacity 450 Sight Range 16 Terrain Scan Density 10 Evasion (%) 50 Item Schematics ----------------- None Robot Schematics ------------------ None Fabricated ------------ Nothing Alien Tech Used ----------------- None Achievements -------------- None Challenges ------------ None Game ------ Seed CoreDefenseInitializer Manual? 0 Play Time 00:15:12 Cumulative 6.5 hours Start 2021.10.31 @ 22:25:01 End 2021.10.31 @ 22:40:33 Sessions 1 Manual Loads 0 Difficulty Rogue Special Mode None Game No. 9 Rogue 9 Adventurer 0 Explorer 0 Win Type - Total 0 Types 0/0/0/0/0/0/0/0/0 Lore% 15 Gallery% 15 Achievement% 14 Wizard Run 0 Options --------- ASCII 0 Keyboard 0 Movement Mouse Keybinds 0 Fullscreen 1 Font 18/SmallcapsGlow Map View 76x50 Tactical HUD 1 Map Filters NONE Filters NONE Steam 1 RUN: 8b09cb4f-fb8d-4d78-9bb5-18cfcf66b2f2